Cogmind - Beta 12 @@@ ROGUE MODE // 2023.12.05 @ 08:46:56 Player: ChromeKnight Result: Destroyed by P-60 Hacker with Shock Rifle Performance ------------- Evolutions (4) 2000 Regions Visited (12) 2400 Robots Destroyed (70) 350 Value Destroyed (2135) 2135 Prototype IDs (4) 80 Alien Tech Used (0) 0 Bonus (1625) 1625 TOTAL SCORE: 8590 Bonus ------- High Alert Combat Kills 62 Follower Combat Kills 663 Entered Garrisons 400 Used RIF Installer 500 Cogmind --------- Core Integrity 0/850 Matter 247/300 Energy 100/100 System Corruption 3% Temperature Cool (0) Movement Core (50) Location -6/Garrison Parts ------- > --- POWER (1) -------- (None) > --- PROPULSION (2) --- (None) > --- UTILITY (10) ----- Enhanced Optical Array Advanced Targeting Computer System Shield > --- WEAPON (2) ------- (None) > --- INVENTORY (5) ---- Cloaking Device System Restoration Module Heavy Linear Accelerator Advanced Remote Datajack Peak State ------------ > --- POWER ------------ Reinforced Deuterium Engine > --- PROPULSION ------- Carbon-fiber Leg > --- UTILITY ---------- Advanced Cooling System Enhanced Optical Array Active Sensor Suite Advanced Targeting Computer Advanced Weapon Cycler Improved Light Armor Plating Hacking Suite System Shield > --- WEAPON ----------- Heavy Linear Accelerator > --- INVENTORY -------- Cloaking Device System Restoration Module Advanced Remote Datajack [Rating: 82] Favorites ----------- Power Heavy Ion Engine Engine Heavy Ion Engine Power Core Light Nuclear Core Reactor Cold Fusion Reactor Propulsion Light Treads Treads Light Treads Leg Carbon-fiber Leg Wheel Armored Huge Wheel Flight Unit Cesium-ion Thruster Utility Targeting Computer Device Weapon Cycler Storage Huge Storage Unit Processor Targeting Computer Hackware System Shield Protection Medium Insulated Plating Weapon Improved Light Cannon Energy Gun Backup Laser III Ballistic Gun Gauss Rifle Ballistic Cannon Improved Light Cannon Special Weapon Advanced Remote Datajack Special Melee Weapon Improved Datajack Build | -11 -10 -10 -10 -9 -8 -8 -8 -8 -6 -6 -6 -6 ------- Run | Jun Mat Min Exi Min Mat Sto Gar Rec Fac Was Fac Gar Slots Evolved 8 | . . . . . 4 . . . 4 . . . Power . | . . . . . . . . . . . . . Propulsion . | . . . . . . . . . . . . . Utility 8 | . . . . . 4 . . . 4 . . . Weapon . | . . . . . . . . . . . . . Parts Attached 78 | 6 4 1 . . 9 5 4 6 10 2 18 13 Power 7 | 1 1 . . . . 1 1 . 1 . 1 1 Engine 4 | 1 1 . . . . . 1 . . . . 1 Core 2 | . . . . . . 1 . . 1 . . . Reactor 1 | . . . . . . . . . . . 1 . Propulsion 9 | 2 . . . . 1 1 . . 2 . 2 1 Treads 2 | 2 . . . . . . . . . . . . Leg 1 | . . . . . . . . . . . . 1 Wheel 2 | . . . . . 1 1 . . . . . . Hover . | . . . . . . . . . . . . . Flight 4 | . . . . . . . . . 2 . 2 . Utility 45 | 1 1 1 . . 7 2 3 2 6 2 13 7 Device 11 | . . . . . 1 . . . . 1 6 3 Storage 3 | 1 1 . . . 1 . . . . . . . Processor 7 | . . . . . 3 . . . 1 . 1 2 Hackware 8 | . . . . . . . . . 3 1 3 1 Protection 16 | . . 1 . . 2 2 3 2 2 . 3 1 Artifact . | . . . . . . . . . . . . . Weapon 17 | 2 2 . . . 1 1 . 4 1 . 2 4 Energy Gun 1 | 1 . . . . . . . . . . . . Energy Cannon . | . . . . . . . . . . . . . Ballistic Gun 3 | 1 . . . . . . . . . . . 2 Ballistic Cannon 7 | . 2 . . . 1 1 . 2 . . . 1 Launcher . | . . . . . . . . . . . . . Special Weapon 2 | . . . . . . . . . . . 1 1 Impact Weapon . | . . . . . . . . . . . . . Slashing Weapon . | . . . . . . . . . . . . . Piercing Weapon . | . . . . . . . . . . . . . Special Melee Weapon 4 | . . . . . . . . 2 1 . 1 . Unidentified Prototypes 4 | . 1 . . . . . . . . 1 1 1 Parts Lost 18 | . . . . . 1 1 . . . . 11 5 Power 2 | . . . . . . . . . . . 1 1 Propulsion 4 | . . . . . . . . . . . 3 1 Utility 8 | . . . . . . . . . . . 5 3 Weapon 4 | . . . . . 1 1 . . . . 2 . Highest Loss Streak 5 | . . . . . 1 1 . . . . 5 3 To Critical Strikes 1 | . . . . . . . . . . . . 1 Average Slot Usage (%) 86 | . 85 98 100 100 89 90 90 90 82 86 88 52 Engine 7 | . 14 14 14 14 9 6 7 9 . . 3 3 Core 1 | . . . . . . 2 1 . 5 6 . . Treads 6 | . 28 28 28 28 . . . . . . . . Wheel 3 | . . . . . 8 9 9 9 . . . . Flight 3 | . . . . . . . . . 11 13 10 . Device 3 | . . . . . 8 1 . . . . 10 11 Storage 6 | . 14 14 14 14 9 9 9 9 . . . . Processor 17 | . . . . . 26 27 27 27 24 26 17 8 Hackware 8 | . . . . . . . . . 17 20 26 16 Protection 11 | . . 13 14 14 9 16 18 18 12 13 7 4 Ballistic Cannon 13 | . 23 28 28 28 17 18 18 17 1 . . 3 Special Melee Weapon 1 | . . . . . . . . . 5 6 4 . Naked Turns . | . . . . . . . . . . . . . Heaviest Build 112 | 14 36 39 39 39 105 112 110 110 110 10 12 52 Greatest Support 40 | 40 40 40 40 40 40 28 28 28 28 10 12 15 Greatest Overweight (x) 21 | 1 . . . . 3 3 3 3 21 . . 17 Average Overweight (x) 1 | . . . . . 2 3 3 3 . . . 3 Largest Inventory Capacity 25 | 8 15 15 15 15 25 25 25 25 25 5 5 5 Average Capacity 15 | 7 14 15 15 15 23 25 25 25 7 5 5 5 Most Carried 25 | 1 6 14 14 15 25 25 25 25 25 5 5 5 Average Carried 13 | . 3 10 14 14 19 24 24 24 7 4 4 3 Final Capacity 25 | 8 15 15 15 15 25 25 25 25 5 5 5 5 Final Carried 25 | 1 5 14 14 14 25 24 25 25 5 5 5 5 Class Distribution -------------------- 52% | Mutant 13% | Hacker-Mutant 10% | Commander-Mutant 9% | Commander-Sprinter 8% | Hacker-Sprinter 5% | Hacker-Skirmisher Dominant Class ---------------- Mutant | -10/Materials Mutant | -10/Mines Mutant | -10/Exiles Mutant | -9/Mines Mutant | -8/Materials Mutant | -8/Storage Mutant | -8/Garrison Commander-Mutant | -8/Recycling Commander-Sprinter | -6/Factory Hacker-Sprinter | -6/Waste Hacker-Mutant | -6/Factory Hacker-Skirmisher | -6/Garrison Resources | -11 -10 -10 -10 -9 -8 -8 -8 -8 -6 -6 -6 -6 ----------- Run | Jun Mat Min Exi Min Mat Sto Gar Rec Fac Was Fac Gar Matter Collected 2116 | 260 142 119 . 88 444 301 223 120 . 110 50 259 Remotely . | . . . . . . . . . . . . . Salvage Created 1924 | . 340 53 . 130 644 270 242 178 . . 67 . Parts 138 | . 21 4 . 16 50 17 18 8 . . 4 . Haulers Intercepted . | . . . . . . . . . . . . . Recyclers Shooed 2 | . 1 . . . 1 . . . . . . . Parts Field Recycled . | . . . . . . . . . . . . . Retrieved Matter . | . . . . . . . . . . . . . Parts Self-Destructed . | . . . . . . . . . . . . . Prevented . | . . . . . . . . . . . . . Kills | -11 -10 -10 -10 -9 -8 -8 -8 -8 -6 -6 -6 -6 ------- Run | Jun Mat Min Exi Min Mat Sto Gar Rec Fac Was Fac Gar Combat Hostiles Destroyed 55 | . 6 2 . 5 18 8 10 4 . . 1 1 Guns 1 | . . . . . . . . . . . 1 . Cannons 54 | . 6 2 . 5 18 8 10 4 . . . 1 Classes Destroyed 13 | . 4 1 . 3 2 1 . 2 . . . . Worker 1 | . . . . 1 . . . . . . . . Builder 2 | . . . . 1 1 . . . . . . . Recycler 5 | . 2 . . 1 2 . . . . . . . Operator 4 | . 1 . . . 2 1 . . . . . . Watcher 3 | . 1 . . . 1 . . . . . 1 . Swarmer 18 | . . . . 5 8 . 4 . . . 1 . Cutter 2 | . . . . . 2 . . . . . . . Grunt 18 | . 6 . . . 3 3 5 1 . . . . Duelist 1 | . . . . . . . . 1 . . . . Sentry 11 | . . 2 . . 3 3 1 1 . . . 1 Specialist 2 | . . . . . 2 . . . . . . . Hunter 2 | . . . . . . 2 . . . . . . Programmer 1 | . . . . . . . . 1 . . . . Best Kill Streak 6 | . 3 2 . 3 6 3 4 4 . . 1 1 Combat Bots Only 5 | . 2 2 . 3 5 3 4 4 . . 1 1 Max Kills in Single Turn 2 | . 2 1 . 2 2 1 1 1 . . 1 1 Gunslinging . | . . . . . . . . . . . . . Exploded . | . . . . . . . . . . . . . Melee . | . . . . . . . . . . . . . Uniques/NPCs Destroyed . | . . . . . . . . . . . . . Combat | -11 -10 -10 -10 -9 -8 -8 -8 -8 -6 -6 -6 -6 -------- Run | Jun Mat Min Exi Min Mat Sto Gar Rec Fac Was Fac Gar Damage Taken 4190 | . 81 194 . 110 666 655 323 314 . . 820 1027 Core 1258 | . . 41 . . 148 93 98 28 . . 286 564 Absorbed by Shields 122 | . . . . . . . 45 32 . . 45 . Redirected to Shielding 72 | . . . . . . . . . . . 72 . Regen/Repaired (Parts) 41 | . . . . . . . . . . . 41 . Core Remaining (%) 72 | 100 . . . 83 . . . 33 . . . . Volleys Fired 168 | . 19 8 . 11 45 33 26 5 . . 7 14 Largest 2 | . 2 2 . 2 2 2 2 1 . . 1 2 Hottest 83 | . 78 78 . 78 78 78 78 39 . . 40 83 Shots Fired 314 | . 38 16 . 22 90 65 52 5 . . 7 19 Gun 19 | . 2 . . . . . . . . . 7 10 Cannon 293 | . 36 16 . 22 90 65 52 5 . . . 7 Launcher . | . . . . . . . . . . . . . Special 2 | . . . . . . . . . . . . 2 Kinetic 304 | . 37 16 . 22 90 65 52 5 . . . 17 Thermal 8 | . 1 . . . . . . . . . 7 . Explosive . | . . . . . . . . . . . . . Electromagnetic . | . . . . . . . . . . . . . Robot Hit Streak 12 | . 9 11 . 2 12 11 6 3 . . 4 9 Robot Miss Streak 4 | . 3 1 . 1 4 3 3 2 . . 3 1 Penetration Max . | . . . . . . . . . . . . . Secondary Targets . | . . . . . . . . . . . . . Shots Hit Robots 204 | . 21 12 . 12 46 38 27 33 1 . 7 7 Core Hits 92 | . 12 3 . 7 29 17 13 5 . . 3 3 Critical Kills . | . . . . . . . . . . . . . Critical Parts Destroyed . | . . . . . . . . . . . . . Critical Strikes 4 | . . . . . 2 1 1 . . . . . Blast 4 | . . . . . 2 1 1 . . . . . Melee Attacks 36 | . . . . . . . . 30 1 . 5 . Impact . | . . . . . . . . . . . . . Slashing . | . . . . . . . . . . . . . Piercing . | . . . . . . . . . . . . . Sneak Attacks 30 | . . . . . . . . 29 . . 1 . Combat Hostiles 20 | . . . . . . . . 20 . . . . Follow-up Attacks . | . . . . . . . . . . . . . Damage Inflicted 4023 | . 431 250 . 345 1064 733 601 124 . . 91 384 Guns 81 | . 13 . . . . . . . . . 68 . Cannons 3804 | . 418 250 . 345 1017 705 591 115 . . . 363 Explosions . | . . . . . . . . . . . . . Melee . | . . . . . . . . . . . . . Ramming 138 | . . . . . 47 28 10 9 . . 23 21 Kinetic 3804 | . 418 250 . 345 1017 705 591 115 . . . 363 Thermal 81 | . 13 . . . . . . . . . 68 . Explosive . | . . . . . . . . . . . . . Electromagnetic . | . . . . . . . . . . . . . Impact . | . . . . . . . . . . . . . Slashing . | . . . . . . . . . . . . . Piercing . | . . . . . . . . . . . . . Highest Corruption 3 | . . . . . 1 1 1 1 . . . 3 Average Corruption 1 | . . . . . 1 1 1 1 . . . 1 Corruption Purged . | . . . . . . . . . . . . . Corruption Blocked 8 | . . . . . . . . . 8 . . . Effects 23 | . . . . . . 12 5 6 . . . . Message Errors 6 | . . . . . . 4 . 2 . . . . Matter Fused 5 | . . . . . . 2 1 2 . . . . Heat Flow Errors 2 | . . . . . . 1 1 . . . . . Energy Discharges 2 | . . . . . . 1 . 1 . . . . Parts Fused 1 | . . . . . . 1 . . . . . . Data Loss (minor) 4 | . . . . . . 2 2 . . . . . Data Loss (major) 2 | . . . . . . . 1 1 . . . . Weapon Failures 1 | . . . . . . 1 . . . . . . Overload Shots . | . . . . . . . . . . . . . Overflow Damage 159 | . 12 . . 16 38 . 15 . . . . 78 Projectiles 152 | . 12 . . 16 31 . 15 . . . . 78 Explosions . | . . . . . . . . . . . . . Melee 7 | . . . . . 7 . . . . . . . Knockbacks 27 | . 6 . . 4 8 4 4 . . . 1 . Impact 2 | . . . . . 1 . . . . . 1 . Kinetic 23 | . 6 . . 3 6 4 4 . . . . . Secondary 2 | . . . . 1 1 . . . . . . . Self-Inflicted Damage 65 | . . . . . 23 13 5 4 . . 11 9 Shots . | . . . . . . . . . . . . . Rammed 16 | . . . . . 2 4 1 1 . . 3 5 Targets Rammed 16 | . . . . . 2 4 1 1 . . 3 5 Kicked . | . . . . . . . . . . . . . Crushed . | . . . . . . . . . . . . . Highest Temperature 368 | . 129 175 . 150 247 285 368 63 . . . 45 Average Temperature 91 | . 36 87 . 47 81 99 140 25 . . . 29 Received Heat Transfer 1034 | . 63 54 . . 144 162 152 135 . . 183 141 Effects 3 | . . . . . . . 3 . . . . . Energy Bleed 1 | . . . . . . . 1 . . . . . Interference 2 | . . . . . . . 2 . . . . . Siege Activations . | . . . . . . . . . . . . . Robots Corrupted . | . . . . . . . . . . . . . Combat Hostiles . | . . . . . . . . . . . . . Parts Fried . | . . . . . . . . . . . . . Impact Corruptions 1 | . . . . . 1 . . . . . . . Robots Melted . | . . . . . . . . . . . . . Combat Hostiles . | . . . . . . . . . . . . . Parts Melted . | . . . . . . . . . . . . . Heat Transferred 222 | . 37 . . . . . . . . . 185 . Parts Sabotaged . | . . . . . . . . . . . . . Parts Stolen . | . . . . . . . . . . . . . Parts Stripped . | . . . . . . . . . . . . . Power Chain Reactions . | . . . . . . . . . . . . . Missiles Intercepted . | . . . . . . . . . . . . . Alert | -11 -10 -10 -10 -9 -8 -8 -8 -8 -6 -6 -6 -6 ------- Run | Jun Mat Min Exi Min Mat Sto Gar Rec Fac Was Fac Gar Peak Influence 632 | . 179 87 . 124 306 394 632 358 40 76 75 249 Initial 284 | . . 30 . . 19 118 256 284 16 . 28 52 Average 123 | . 77 58 . 46 161 193 462 199 16 16 34 100 Maximum Alert Level 2 | . . . . . 1 1 2 1 . . . 1 Low Security (%) 78 | 100 100 100 . 100 67 54 . 57 100 100 100 87 Level 1 16 | . . . . . 32 45 32 42 . . . 12 Level 2 5 | . . . . . . . 67 . . . . . Level 3 . | . . . . . . . . . . . . . Level 4 . | . . . . . . . . . . . . . Level 5 . | . . . . . . . . . . . . . High Security . | . . . . . . . . . . . . . Max Security . | . . . . . . . . . . . . . Squads Dispatched 19 | . 3 . . 1 5 . . . 4 1 5 . Investigation 8 | . 2 . . . 3 . . . 1 . 2 . Extermination 3 | . . . . . . . . . 1 . 2 . Reinforcement 6 | . 1 . . . 2 . . . 2 . 1 . Assault 2 | . . . . 1 . . . . . 1 . . Garrison . | . . . . . . . . . . . . . Intercept . | . . . . . . . . . . . . . Searches Triggered . | . . . . . . . . . . . . . Construction Impeded . | . . . . . . . . . . . . . Haulers Reinforced . | . . . . . . . . . . . . . Active Scanning Responses 1 | . . . . . . . . . . . . 1 Cargo Convoy Interrupts 1 | . . . . . . . . . 1 . . . Stealth | -11 -10 -10 -10 -9 -8 -8 -8 -8 -6 -6 -6 -6 --------- Run | Jun Mat Min Exi Min Mat Sto Gar Rec Fac Was Fac Gar Distress Signals 4 | . . . . . 1 . . . 2 1 . . Communications Jammed . | . . . . . . . . . . . . . Distress Signals . | . . . . . . . . . . . . . Times Spotted 143 | . 9 2 . 7 29 11 17 5 1 4 30 28 Peak Tracking Total 25 | . 2 2 . 3 6 3 4 4 1 5 11 25 Tactical Retreats 10 | . . . . . 1 . 2 . . 2 4 1 Traps | -11 -10 -10 -10 -9 -8 -8 -8 -8 -6 -6 -6 -6 ------- Run | Jun Mat Min Exi Min Mat Sto Gar Rec Fac Was Fac Gar Traps Triggered 14 | . 2 1 . . 3 . 6 . 1 . 1 . Indirectly . | . . . . . . . . . . . . . Trap Hack Attempts 14 | . . . . . . . . . . . 14 . Triggered . | . . . . . . . . . . . . . Disarmed . | . . . . . . . . . . . . . Reprogrammed 2 | . . . . . . . . . . . 2 . Reused . | . . . . . . . . . . . . . Traps Extracted . | . . . . . . . . . . . . . Installed 2 | . . . . 2 . . . . . . . . Triggered 1 | . . . . . . . . . 1 . . . Most Traps Carried 5 | . . 5 5 5 . . . . . . . . Machines | -11 -10 -10 -10 -9 -8 -8 -8 -8 -6 -6 -6 -6 ---------- Run | Jun Mat Min Exi Min Mat Sto Gar Rec Fac Was Fac Gar Machines Disabled 10 | . 3 . . . . 4 . . . . . 3 Max in Single Turn 1 | . 1 . . . . 1 . . . . . 1 Machines Repaired . | . . . . . . . . . . . . . Machines Sabotaged . | . . . . . . . . . . . . . Overloaded Fab Kills . | . . . . . . . . . . . . . Hacking | -11 -10 -10 -10 -9 -8 -8 -8 -8 -6 -6 -6 -6 --------- Run | Jun Mat Min Exi Min Mat Sto Gar Rec Fac Was Fac Gar Machines Accessed 29 | . 2 1 . . 2 5 2 6 2 . 9 . Terminals 21 | . 2 . . . 1 4 2 6 . . 6 . Fabricators 2 | . . . . . . . . . 1 . 1 . Repair Stations 2 | . . . . . 1 . . . . . 1 . Recycling Units . | . . . . . . . . . . . . . Scanalyzers . | . . . . . . . . . . . . . Garrison Access 3 | . . . . . . 1 . . 1 . 1 . Total Hacks 83 | . 4 1 . . 9 10 4 13 3 . 39 . Successful 34 | . 2 1 . . 5 4 . 4 3 . 15 . Failed 48 | . 2 . . . 4 6 4 9 . . 23 . Catastrophic 8 | . 1 . . . . 1 2 2 . . 2 . Database Lockouts 1 | . . . . . . . . . . . 1 . Manual 59 | . 4 . . . 5 3 . 11 2 . 34 . Terminals 71 | . 4 . . . 5 9 4 13 . . 36 . Fabricators 2 | . . . . . . . . . 1 . 1 . Repair Stations 5 | . . . . . 4 . . . . . 1 . Recycling Units . | . . . . . . . . . . . . . Scanalyzers . | . . . . . . . . . . . . . Garrison Access 4 | . . . . . . 1 . . 2 . 1 . Terminal Hacks 8 | . 1 1 . . 1 1 . . . . 4 . Part Schematic 1 | . . . . . . . . . . . 1 . Open Door 2 | . . 1 . . . 1 . . . . . . Branch Access Points 1 | . . . . . 1 . . . . . . . Garrison Index 1 | . . . . . . . . . . . 1 . Patrol Status 1 | . . . . . . . . . . . 1 . Recall Investigation 1 | . 1 . . . . . . . . . . . Recall Extermination 1 | . . . . . . . . . . . 1 . Fabricator Hacks 1 | . . . . . . . . . . . 1 . Build 1 | . . . . . . . . . . . 1 . Repair Station Hacks 1 | . . . . . 1 . . . . . . . Scan Component 1 | . . . . . 1 . . . . . . . Recycling Unit Hacks . | . . . . . . . . . . . . . Scanalyzer . | . . . . . . . . . . . . . Garrison Access Hacks 3 | . . . . . . 1 . . 1 . 1 . Unlock Access 3 | . . . . . . 1 . . 1 . 1 . Unauthorized Hacks 21 | . 1 . . . 3 2 . 4 2 . 9 . Terminals 19 | . 1 . . . 3 2 . 4 . . 9 . Track 1 | . . . . . . . . . . . 1 . Assimilate 4 | . . . . . 1 . . . . . 3 . Botnet 11 | . . . . . 1 2 . 4 . . 4 . Operators 3 | . 1 . . . 1 . . . . . 1 . Fabricators 1 | . . . . . . . . . 1 . . . Fabnet 1 | . . . . . . . . . 1 . . . Repair Stations . | . . . . . . . . . . . . . Recycling Units . | . . . . . . . . . . . . . Scanalyzers . | . . . . . . . . . . . . . Garrison Access 1 | . . . . . . . . . 1 . . . Reprogram 1 | . . . . . . . . . 1 . . . Data Cores Recovered 3 | . . . . . 2 1 . . . . . . Used . | . . . . . . . . . . . . . Hacking Detections 21 | . 2 . . . 1 4 2 5 . . 7 . Full Trace Events 3 | . . . . . 1 . 1 . . . 1 . Feedback Events . | . . . . . . . . . . . . . Feedback Blocked . | . . . . . . . . . . . . . Robot Schematics Acquired . | . . . . . . . . . . . . . Robots Built 2 | . . . . . . . . . . . 2 . Authchips . | . . . . . . . . . . . . . Time 76 | . . . . . . . . . . . 76 . Total Robot Build Rating 10 | . . . . . . . . . . . 10 . Part Schematics Acquired 1 | . . . . . . . . . . . 1 . Parts Built . | . . . . . . . . . . . . . Authchips . | . . . . . . . . . . . . . Time . | . . . . . . . . . . . . . Total Part Build Rating . | . . . . . . . . . . . . . Parts Repaired . | . . . . . . . . . . . . . Time . | . . . . . . . . . . . . . Parts Recycled . | . . . . . . . . . . . . . Recycled Matter . | . . . . . . . . . . . . . Retrieved Matter . | . . . . . . . . . . . . . Retrieved Components . | . . . . . . . . . . . . . Parts Scanalyzed . | . . . . . . . . . . . . . Part Schematics Acquired . | . . . . . . . . . . . . . Parts Damaged . | . . . . . . . . . . . . . Bothacking | -11 -10 -10 -10 -9 -8 -8 -8 -8 -6 -6 -6 -6 ------------ Run | Jun Mat Min Exi Min Mat Sto Gar Rec Fac Was Fac Gar Used RIF Installer 1 | . . . . . . . 1 . . . . . Robots Hacked 5 | . . . . . . . . . 1 . 3 1 Non-combat 4 | . . . . . . . . . 1 . 3 . Combat 1 | . . . . . . . . . . . . 1 Robot Hacks Applied 5 | . . . . . . . . . 1 . 3 1 parse_system 1 | . . . . . . . . . 1 . . . map_route 1 | . . . . . . . . . . . 1 . amplify_resonance 1 | . . . . . . . . . . . 1 . formatsys_low 1 | . . . . . . . . . . . 1 . formatsys_high 1 | . . . . . . . . . . . . 1 Relay Couplers Released 3 | . . . . . . . . . . 3 . . Programmers 3 | . . . . . . . . . . 3 . . Attached 3 | . . . . . . . . . . 1 1 1 Fabnet Peak Effective % . | . . . . . . . . . . . . . Robots Rewired 10 | . . . . . . . . 10 . . . . Allies Hacked 2 | . . . . . . . . 1 . . 1 . Hacks Repelled . | . . . . . . . . . . . . . Allies | -11 -10 -10 -10 -9 -8 -8 -8 -8 -6 -6 -6 -6 -------- Run | Jun Mat Min Exi Min Mat Sto Gar Rec Fac Was Fac Gar Total Allies 29 | . . . . 1 1 10 . 10 1 . 5 1 Largest Group 10 | . . . . 1 1 10 9 8 9 6 6 1 Highest-Rated Group 173 | . . . . 31 10 173 157 115 171 128 100 41 Highest-Rated Ally 54 | . . . . 31 10 29 29 27 54 54 29 41 Total Orders 9 | . . . . . . . . . 4 . 5 . STAY 4 | . . . . . . . . . 2 . 2 . ROAM 1 | . . . . . . . . . . . 1 . FOLLOW 1 | . . . . . . . . . 1 . . . AID 1 | . . . . . . . . . . . 1 . DROP 1 | . . . . . . . . . . . 1 . COLLECT 1 | . . . . . . . . . 1 . . . Ally Attacks 158 | . . . . 8 . 25 71 13 1 22 3 15 Total Damage 3010 | . . . . 144 . 367 821 228 27 763 . 660 Kills 23 | . . . . 3 . 3 8 2 . 3 . 4 Allies Corrupted . | . . . . . . . . . . . . . Allies Melted . | . . . . . . . . . . . . . Intel | -11 -10 -10 -10 -9 -8 -8 -8 -8 -6 -6 -6 -6 ------- Run | Jun Mat Min Exi Min Mat Sto Gar Rec Fac Was Fac Gar Robot Analysis Total . | . . . . . . . . . . . . . Derelict Logs Recovered 2 | . . 1 . 1 . . . . . . . . Drone Launches . | . . . . . . . . . . . . . Drone Recoveries . | . . . . . . . . . . . . . Exploration | -11 -10 -10 -10 -9 -8 -8 -8 -8 -6 -6 -6 -6 ------------- Run | Jun Mat Min Exi Min Mat Sto Gar Rec Fac Was Fac Gar Turns Passed 8454 | 69 539 576 439 425 896 760 597 945 919 281 1243 765 Spaces Moved 5391 | 40 277 337 275 187 462 366 257 567 576 491 1338 218 Core 407 | 6 . . . . . . . . . . 204 197 Treads 1118 | 34 277 337 275 187 8 . . . . . . . Legs 21 | . . . . . . . . . . . . 21 Wheels 1678 | . . . . . 454 366 257 567 34 . . . Hover . | . . . . . . . . . . . . . Flight 2167 | . . . . . . . . . 542 491 1134 . Fastest Speed 32 | 50 160 160 160 160 115 145 145 145 32 32 32 50 Average Speed 103 | 149 160 160 160 160 142 145 145 145 47 32 35 224 Slowest Speed 1715 | 160 160 160 160 160 160 145 145 145 1715 32 50 900 Overloaded Moves . | . . . . . . . . . . . . . Propulsion Burnouts . | . . . . . . . . . . . . . Robots Hopped 14 | . . . . . . . . . . . 14 . Cave-ins Triggered . | . . . . . . . . . . . . . Exploration Rate (%) 47 | 4 39 49 69 57 36 64 33 97 8 95 32 36 Regions Visited 12 Branch Regions 5 Pre-discovered Areas 1 | . . . . 1 . . . . . . . . Known Exits Taken 3 | . . . . . 1 1 . . . . 1 . Unknown Exits Taken 6 | 1 1 1 1 1 . . . 1 . . . . Scrap Searched 2 | . . 1 . 1 . . . . . . . . Spaces Dug . | . . . . . . . . . . . . . Terrain Destroyed 8 | . 2 1 . 1 2 1 . . . . . 1 Melee . | . . . . . . . . . . . . . Projectile 8 | . 2 1 . 1 2 1 . . . . . 1 AOE . | . . . . . . . . . . . . . Terrain Rammed . | . . . . . . . . . . . . . Walls Destroyed . | . . . . . . . . . . . . . Machines Disabled . | . . . . . . . . . . . . . Actions | -11 -10 -10 -10 -9 -8 -8 -8 -8 -6 -6 -6 -6 --------- Run | Jun Mat Min Exi Min Mat Sto Gar Rec Fac Was Fac Gar Total 7976 | 46 336 358 274 295 635 535 431 667 1230 615 2077 477 Wait 2097 | . 23 . . 84 93 114 105 38 619 116 688 217 Move 5353 | 39 276 336 274 186 461 365 255 566 576 490 1311 218 Hop 12 | . . . . . . . . . . . 12 . Pick Up 65 | 1 7 11 . 6 16 5 3 2 8 3 3 . Fast Attach 42 | 6 4 1 . . 3 2 2 . 1 2 11 10 Attach 19 | . . . . . 3 2 . . 9 . 2 3 Detach 3 | . . . . . . . . . . . 1 2 Swap 17 | . . . . . 3 1 2 6 . . 5 . Drop 80 | . 7 2 . 6 9 7 5 2 16 4 14 8 Fire 168 | . 19 8 . 11 45 33 26 5 . . 7 14 Melee 36 | . . . . . . . . 30 1 . 5 . Ram 16 | . . . . . 2 4 1 1 . . 3 5 Kick . | . . . . . . . . . . . . . Crush . | . . . . . . . . . . . . . Escape Stasis 32 | . . . . . . . 32 . . . . . Rewire 20 | . . . . . . 2 . 17 . . 1 . Trap 16 | . . . . 2 . . . . . . 14 . Miscellaneous . | . . . . . . . . . . . . . Route ------- -11/Junkyard -10/Materials -10/Mines -10/Exiles (discovered 2 exits: [*Min x2]) -9/Mines (discovered 2 exits: *Mat x2) -8/Materials (discovered 2 exits: *Sto x2) -8/Storage (discovered 2 exits: [*Fac] / Gar) -8/Garrison -8/Recycling -6/Factory -6/Waste -6/Factory -6/Garrison History --------- Turn | Location | Event 4 | -11/Junkyard | Discovered new exit (range 16) 70 | -11/Junkyard | Entered Materials 316 | -10/Materials | Discovered new exit (range 14) 318 | -10/Materials | Build established: Mutant 609 | -10/Materials | Entered Mines 797 | -10/Mines | Met a Derelict who couldn't figure out how to use a Trap Extractor 930 | -10/Mines | Found a hidden stash of uninstalled traps 1178 | -10/Mines | Deemed a non-threat by the Exiles lab entrance 1178 | -10/Mines | Discovered new exit (range 5) 1185 | -10/Mines | Entered Exiles 1185 | -10/Exiles | Found Exiles lab abandoned 1211 | -10/Exiles | Discovered new exit (range 15) 1603 | -10/Exiles | Discovered new exit (range 14) 1624 | -10/Exiles | Entered Mines 1625 | -9/Mines | Met a Derelict testing a Signal Generator 1631 | -9/Mines | Found Signal Generator 1861 | -9/Mines | Learned location of Storage (-8) 2012 | -9/Mines | Discovered new exit (range 5) 2018 | -9/Mines | Discovered new exit (range 8) 2049 | -9/Mines | Entered Materials 2049 | -8/Materials | Evolved 4 slots: Utility x4 2050 | -8/Materials | Identified exit to Storage 2945 | -8/Materials | Entered Storage 3535 | -8/Storage | Assisted by bots powering up and referring to "LRC-V3" 3654 | -8/Storage | Discovered new exit (range 9) 3698 | -8/Storage | Identified exit to Garrison 3705 | -8/Storage | Entered Garrison 3705 | -8/Garrison | Accompanied by 9 allies 3742 | -8/Garrison | Triggered checkpoint 3998 | -8/Garrison | Core integrity fell below 50% 4121 | -8/Garrison | Discovered new exit (range 14) 4180 | -8/Garrison | Installed Relay Interface Framework 4222 | -8/Garrison | Triggered checkpoint 4302 | -8/Garrison | Entered Recycling 4738 | -8/Recycling | Discovered new exit (range 16) 4971 | -8/Recycling | Build established: Commander-Mutant 5247 | -8/Recycling | Entered Factory 5247 | -6/Factory | Accompanied by 8 allies 5247 | -6/Factory | Evolved 4 slots: Utility x4 5519 | -6/Factory | Identified exit to Garrison 5660 | -6/Factory | Build established: Commander-Sprinter 6026 | -6/Factory | Cargo convoy interrupted 6166 | -6/Factory | Sucked down chute 6166 | -6/Factory | Entered Waste 6166 | -6/Waste | The area was eerily silent 6240 | -6/Waste | 5 allies followed down the chute 6245 | -6/Waste | 1 allies followed down the chute 6277 | -6/Waste | Found Prototype Device 6277 | -6/Waste | Identified Exp. Focal Shield 6321 | -6/Waste | Discovered new exit (range 12) 6447 | -6/Waste | Entered Factory 6447 | -6/Factory | Accompanied by 2 allies 6454 | -6/Factory | Build established: Hacker-Sprinter 6783 | -6/Factory | Fabricated E-15 Imp (x2) 7314 | -6/Factory | Build established: Hacker-Mutant 7380 | -6/Factory | Lost 3 parts (1p1n1w) 7618 | -6/Factory | Lost 5 parts (4u1w) 7654 | -6/Factory | Central database locked down 7683 | -6/Factory | Spotted B-75 Beast 7684 | -6/Factory | Identified exit to Garrison 7690 | -6/Factory | Entered Garrison 7875 | -6/Garrison | Heavy support dispatched to Factory 7915 | -6/Garrison | Core integrity fell below 50% 7997 | -6/Garrison | Found Prototype Device 7997 | -6/Garrison | Identified Active Sensor Suite 8171 | -6/Garrison | H-XX Assembler disabled 8298 | -6/Garrison | Build established: Hacker-Skirmisher 8423 | -6/Garrison | Spotted B-75 Beast 8451 | -6/Garrison | Core integrity fell below 20% 8455 | -6/Garrison | Destroyed by P-60 Hacker with Shock Rifle Last Messages --------------- 08355_ Slug penetrates Y-54 Guardian. 08356_ Y-54 Guardian destroyed. 08376_ Acquired Carbon-fiber Leg. 08377_ Acquired 59 matter. 08404_ Acquired 68 matter. 08413_ Acquired 59 matter. 08415_ ALERT: Active scanning activity detected within garrison interior, activating patrols. 08423_ Acquired 10 matter. 08427_ Dropped Rnf. Deuterium Engine. 08428_ Dropped Adv. Cooling System. 08428_ Dropped Adv. Weapon Cycler. 08428_ Slayer 5a destroyed. 08429_ P-60 Hacker resets S-27 Virus, system corruption cleaned. 08436_ Carbon-fiber Leg destroyed. 08436_ Discarded Active Sensor Suite. 08437_ P-60 Hacker resets S-27 Virus, system corruption cleaned. 08440_ Imp. Light Armor Plating destroyed. 08453_ Slammed into P-60 Hacker. 08455_ Hacking Suite destroyed. Map ----- +----------------------------------------------------+ | ??# ??####??# #???????# #??????????????????????? | | ??# ?# ?# #???????# #??????????????????????? | | ?## ## ## ##??????# #??????????????????????? | | ## ##+##### #??????????????????????? | | #??????????????????????? | | #??????????????????????? | | ?# ?## ## ########"##??????????????????????? | | ## ## ## ###????# #???????????????????????? | | #?#### #???????????????????????? | | # #???????????????????????? | | " ##???????????????????????? | | ##### #????????????????????????? | | ## ## ##^ ###???# ?????????????????????????? | | ## ## ## #######/##???????????????????????? | | #???????????????????????? | | #???????????????????????? | | ## ####### #???????????????????????? | | ?###### ## ##?????# #???????????????????????? | | ??????# ?# #??????# #???????????????????????? | | ??????####??# #??????# #???????????????????????? | | ????????????# #??????# #???????????????????????? | | ????????????# #??????# #???????????????????????? | | ????????????# ???????# #???????????????????????? | | ????????????# ???????# #???????????????????????? | | ????????????# ########Y ####### ####????????????? | | ????????????# p@ p #??????????? | | ????????????# p #??????????? | | ????????????########### ########### #??????????? | | ??????????????????????# #???????????????????????? | | ??????????????????????# #???????????????????????? | | ?????????????????????? #???????????????????????? | | ????????????????????? #???????????????????????? | | ????????????????????? #???????????????????????? | | ????????????????????### #???????????????????????? | | ??????????????????????# #???????????????????????? | | ??????????????????????# #???????????????????????? | | ??????????????????????# ????????????????????????? | | ??????????????????????# ????????????????????????? | | ?????????????????????? ????????????????????????? | | ??????????????????????###????????????????????????? | | ?????????????????????????????????????????????????? | | ?????????????????????????????????????????????????? | | ?????????????????????????????????????????????????? | | ?????????????????????????????????????????????????? | | ?????????????????????????????????????????????????? | | ?????????????????????????????????????????????????? | | ?????????????????????????????????????????????????? | | ?????????????????????????????????????????????????? | | ?????????????????????????????????????????????????? | | ?????????????????????????????????????????????????? | +----------------------------------------------------+ Best States ------------- Heat Dissipation 68 Energy Generation 17 Energy Capacity 290 Matter Stores 300 Matter Capacity 300 Sight Range 22 Robot Scan Range 20 Terrain Scan Density 110 Cloak Strength 2 Additional Mass Support 9 Armor Coverage 450 Resistance: EM 20 Power Shielding 66 Weapon Shielding 66 Weapon Cycling 25 Evasion (%) 63 Targeting Accuracy 10 Core Analysis 6 Recoil Reduction 2 Offensive Hacking 20 Defensive Hacking 20 Relay Coupler Types 1 Relay Coupler Value 22 Item Schematics ----------------- Imp. Hacking Suite | -6/Factory | Hacked Robot Schematics ------------------ None Fabricated ------------ E-15 Imp | x2 | -6/Factory | Preloaded Alien Tech Used ----------------- None Achievements -------------- Assassin Challenges ------------ None Game ------ Seed AlertSubatomicModule Manual? 0 Play Time 00:48:22 Cumulative 416.0 hours Start 2023.12.04 @ 22:49:41 End 2023.12.05 @ 08:46:56 Sessions 3 Manual Loads 0 Difficulty Rogue Special Mode None Game No. 734 Rogue 579 Adventurer 148 Explorer 7 Win Type - Total 18 Types 15/0/2/1/0/0/0/0/0 Lore% 78 Gallery% 89 Achievement% 72 Wizard Run 0 Options --------- ASCII 0 Keyboard 0 Movement Numpad Keybinds 0 Fullscreen 2 Font 18/SmallcapsGlow Map View 76x50 Tactical HUD 1 Map Filters NONE Filters NONE Steam 1 RUN: a2524f2f-49a7-42be-b9f6-05a31c0841f4